[Event "*** Titled Tuesday Blitz"]
[Site "Chess.com"]
[Date "2019.10.01"]
[Round "8"]
[White "Aariow"]
[Black "tteshan"]
[Result "0-1"]
[WhiteElo "2408"]
[BlackElo "2279"]
[TimeControl "180+2"]
[EndTime "14:59:03 PDT"]
[Termination "tteshan won by resignation"]

1. Nf3 {[%clk 0:03:01.9]} 1... Nf6 {[%clk 0:03:00.5]} 2. g3 {[%clk 0:03:03.2]}
2... g6 {[%clk 0:03:01.9]} 3. b3 {[%clk 0:03:04.7]} 3... Bg7 {[%clk 0:03:03.6]}
4. Bb2 {[%clk 0:03:06.6]} 4... O-O {[%clk 0:03:04.6]} 5. Bg2 {[%clk 0:03:08.2]}
5... d6 {[%clk 0:03:06.1]} 6. d4 {[%clk 0:03:09.6]} 6... e5 {[%clk 0:03:05.3]}
7. dxe5 {[%clk 0:03:05.2]} 7... Ng4 {[%clk 0:03:06.7]} 8. h3 {[%clk 0:03:06.2]}
8... Nxe5 {[%clk 0:03:06.7]} 9. Nxe5 {[%clk 0:03:07.8]} 9... dxe5 {[%clk
0:03:08.6]} 10. Qxd8 {[%clk 0:03:08.8]} 10... Rxd8 {[%clk 0:03:10.5]} 11. Nd2
{[%clk 0:03:10.3]} 11... c6 {[%clk 0:03:08.8]} 12. O-O-O {[%clk 0:03:11.8]}
12... Bf5 {[%clk 0:02:55.2]} 13. Nc4 {[%clk 0:03:11.4]} 13... Nd7 {[%clk
0:02:50.4]} 14. g4 {[%clk 0:03:01]} 14... Be6 {[%clk 0:02:49.6]} 15. Na5 {[%clk
0:03:02.6]} 15... Rab8 {[%clk 0:02:28.8]} 16. e3 {[%clk 0:02:53.9]} 16... Kf8
{[%clk 0:02:22.1]} 17. Ba3+ {[%clk 0:02:54.1]} 17... Ke8 {[%clk 0:02:21.5]} 18.
Bd6 {[%clk 0:02:55.2]} 18... Nb6 {[%clk 0:02:08]} 19. Bxb8 {[%clk 0:02:54.7]}
19... Rxb8 {[%clk 0:02:09.9]} 20. a4 {[%clk 0:02:38.5]} 20... Nd5 {[%clk
0:02:09.1]} 21. Nc4 {[%clk 0:02:32.1]} 21... Ke7 {[%clk 0:02:03.5]} 22. Rhe1
{[%clk 0:01:57]} 22... g5 {[%clk 0:01:21]} 23. Bxd5 {[%clk 0:01:56.5]} 23...
cxd5 {[%clk 0:01:22.9]} 24. e4 {[%clk 0:01:57.9]} 24... dxc4 {[%clk 0:01:23.3]}
25. b4 {[%clk 0:01:55.4]} 25... a5 {[%clk 0:01:20.5]} 26. b5 {[%clk 0:01:55.9]}
26... Rd8 {[%clk 0:01:18.2]} 27. Rxd8 {[%clk 0:01:56.3]} 27... Kxd8 {[%clk
0:01:20.1]} 28. c3 {[%clk 0:01:57.3]} 28... Kc7 {[%clk 0:01:20.7]} 29. f3 {[%clk
0:01:54.2]} 29... Bf8 {[%clk 0:01:21.8]} 30. Rh1 {[%clk 0:01:54.1]} 30... Bc5
{[%clk 0:01:22.2]} 31. h4 {[%clk 0:01:54.7]} 31... h6 {[%clk 0:01:23.4]} 32.
hxg5 {[%clk 0:01:55.3]} 32... Be3+ {[%clk 0:01:22.6]} 33. Kc2 {[%clk 0:01:55.6]}
33... hxg5 {[%clk 0:01:23.8]} 34. Rh8 {[%clk 0:01:55.1]} 34... Kb6 {[%clk
0:01:24.3]} 35. Kd1 {[%clk 0:01:49.2]} 35... Bf4 {[%clk 0:01:23.5]} 36. Ke2
{[%clk 0:01:47.2]} 36... Kc7 {[%clk 0:01:24.7]} 37. Ra8 {[%clk 0:01:46]} 37...
Kb6 {[%clk 0:01:23.9]} 38. Rd8 {[%clk 0:01:34.7]} 38... Kc7 {[%clk 0:01:23.8]}
39. Rd1 {[%clk 0:01:36.2]} 39... Bg3 {[%clk 0:01:24.1]} 40. Rb1 {[%clk
0:01:33.7]} 40... Kb6 {[%clk 0:01:19.4]} 41. Rb2 {[%clk 0:01:35.1]} 41... Bf4
{[%clk 0:01:18.7]} 42. Rb1 {[%clk 0:01:34.6]} 42... Kc5 {[%clk 0:01:14.7]} 43.
Rh1 {[%clk 0:01:16.8]} 43... Kb6 {[%clk 0:01:12]} 44. Rh8 {[%clk 0:01:15.7]}
44... Kc5 {[%clk 0:01:13.4]} 45. Rb8 {[%clk 0:01:14.9]} 45... Kb6 {[%clk
0:01:13.8]} 46. Kd1 {[%clk 0:01:15]} 46... Be3 {[%clk 0:01:14.2]} 47. Ke2 {[%clk
0:01:16.2]} 47... Bc5 {[%clk 0:01:15.1]} 48. Ra8 {[%clk 0:01:14.4]} 48... Ba3
{[%clk 0:01:12.6]} 49. Rd8 {[%clk 0:01:03.8]} 49... Kc7 {[%clk 0:01:12.3]} 50.
Ra8 {[%clk 0:01:03.7]} 50... b6 {[%clk 0:01:05.3]} 51. Re8 {[%clk 0:01:03.9]}
51... Bd6 {[%clk 0:01:04.2]} 52. Rg8 {[%clk 0:01:03.2]} 52... Be7 {[%clk
0:00:40.3]} 53. Kd2 {[%clk 0:01:03.7]} 53... Kd7 {[%clk 0:00:39.4]} 54. Rb8
{[%clk 0:01:04]} 54... Kc7 {[%clk 0:00:40.5]} 55. Ra8 {[%clk 0:01:04.5]} 55...
Bc8 {[%clk 0:00:40]} 56. Ra7+ {[%clk 0:00:57.3]} 56... Bb7 {[%clk 0:00:40.3]}
57. Rxb7+ {[%clk 0:00:58.5]} 57... Kxb7 {[%clk 0:00:41.4]} 58. Kc2 {[%clk
0:01:00]} 58... Kc7 {[%clk 0:00:42.8]} 59. Kd2 {[%clk 0:01:01.2]} 59... Kd7
{[%clk 0:00:44.3]} 60. Kc2 {[%clk 0:01:02.8]} 60... Bc5 {[%clk 0:00:46.2]} 61.
Kd2 {[%clk 0:01:04]} 61... Ke7 {[%clk 0:00:48.1]} 62. Kc2 {[%clk 0:01:05.4]}
62... Ke6 {[%clk 0:00:50]} 63. Kd2 {[%clk 0:01:06.9]} 63... Kd6 {[%clk
0:00:51.9]} 64. Kc2 {[%clk 0:01:08.4]} 64... Be3 {[%clk 0:00:50.6]} 65. Kb2
{[%clk 0:01:08.8]} 65... Kc5 {[%clk 0:00:51.5]} 66. Kc2 {[%clk 0:01:09.6]} 66...
Bd4 {[%clk 0:00:51.7]} 67. Kd2 {[%clk 0:01:10.8]} 67... Bxc3+ {[%clk 0:00:52]}
68. Kxc3 {[%clk 0:01:11.1]} 68... f6 {[%clk 0:00:53.6]} 0-1

[Event "*** Titled Tuesday Blitz"]
[Site "Chess.com"]
[Date "2019.10.01"]
[Round "8"]
[White "731291"]
[Black "Spalir"]
[Result "0-1"]
[WhiteElo "2653"]
[BlackElo "2824"]
[TimeControl "180+2"]
[EndTime "14:59:08 PDT"]
[Termination "Spalir won by resignation"]

1. d4 {[%clk 0:03:01.9]} 1... d5 {[%clk 0:02:58.7]} 2. c4 {[%clk 0:03:02.1]}
2... e6 {[%clk 0:03:00.2]} 3. Nf3 {[%clk 0:03:02.6]} 3... Nf6 {[%clk 0:03:01]}
4. g3 {[%clk 0:03:03.4]} 4... dxc4 {[%clk 0:02:57.6]} 5. Bg2 {[%clk 0:03:03]}
5... Bb4+ {[%clk 0:02:57.1]} 6. Bd2 {[%clk 0:03:02.6]} 6... a5 {[%clk 0:02:57]}
7. O-O {[%clk 0:03:02.4]} 7... O-O {[%clk 0:02:55]} 8. Qc2 {[%clk 0:03:01]} 8...
Bxd2 {[%clk 0:02:53.7]} 9. Nbxd2 {[%clk 0:03:01.8]} 9... b5 {[%clk 0:02:53.3]}
10. a4 {[%clk 0:02:50.4]} 10... c6 {[%clk 0:02:53.2]} 11. b3 {[%clk 0:02:47.4]}
11... cxb3 {[%clk 0:02:51.2]} 12. Nxb3 {[%clk 0:02:49.3]} 12... Ba6 {[%clk
0:02:50.2]} 13. Ne5 {[%clk 0:02:45.8]} 13... bxa4 {[%clk 0:02:40.5]} 14. Rxa4
{[%clk 0:02:43.3]} 14... Bb5 {[%clk 0:02:40.5]} 15. Raa1 {[%clk 0:02:24.1]}
15... a4 {[%clk 0:02:37.3]} 16. Qb2 {[%clk 0:02:11.3]} 16... Nfd7 {[%clk
0:02:29.2]} 17. Nd3 {[%clk 0:01:51.8]} 17... Na6 {[%clk 0:02:22.9]} 18. Nd2
{[%clk 0:01:50.3]} 18... Nb6 {[%clk 0:02:07.8]} 19. Rfc1 {[%clk 0:01:49]} 19...
Rb8 {[%clk 0:02:04.6]} 20. Ne5 {[%clk 0:01:42.5]} 20... Nd5 {[%clk 0:01:59]} 21.
Qa3 {[%clk 0:01:28.8]} 21... Qc7 {[%clk 0:01:57.6]} 22. e3 {[%clk 0:01:18.9]}
22... Rfc8 {[%clk 0:01:57]} 23. Ne4 {[%clk 0:01:19.2]} 23... c5 {[%clk
0:01:51.3]} 24. Nxc5 {[%clk 0:01:19.8]} 24... Nxc5 {[%clk 0:01:44.2]} 25. Rxc5
{[%clk 0:01:21.7]} 25... Qd8 {[%clk 0:01:42.9]} 26. Rac1 {[%clk 0:01:19.9]}
26... Be8 {[%clk 0:01:39.6]} 27. h4 {[%clk 0:01:14.4]} 27... h6 {[%clk
0:01:36.6]} 28. Nc6 {[%clk 0:00:53.1]} 28... Bxc6 {[%clk 0:01:33.3]} 29. Rxc6
{[%clk 0:00:55]} 29... Rxc6 {[%clk 0:01:25.5]} 30. Rxc6 {[%clk 0:00:56.9]} 30...
Qa5 {[%clk 0:01:24.1]} 31. Kh2 {[%clk 0:00:48.9]} 31... Nf6 {[%clk 0:01:22.2]}
32. Rc1 {[%clk 0:00:24]} 32... Ng4+ {[%clk 0:01:13.7]} 33. Kg1 {[%clk
0:00:24.1]} 33... Qd2 {[%clk 0:01:01.7]} 34. Rf1 {[%clk 0:00:25.2]} 34... Qc2
{[%clk 0:01:01.4]} 35. Bf3 {[%clk 0:00:25]} 35... Nf6 {[%clk 0:00:56.7]} 36. Rc1
{[%clk 0:00:25.3]} 36... Qb3 {[%clk 0:00:55.2]} 37. Qxb3 {[%clk 0:00:25.5]}
37... axb3 {[%clk 0:00:57.1]} 38. Kf1 {[%clk 0:00:24.6]} 38... g5 {[%clk
0:00:51.1]} 39. hxg5 {[%clk 0:00:24.3]} 39... hxg5 {[%clk 0:00:53]} 40. Ke2
{[%clk 0:00:26]} 40... g4 {[%clk 0:00:51.1]} 41. Bg2 {[%clk 0:00:26.9]} 41...
Kg7 {[%clk 0:00:52.5]} 42. Rb1 {[%clk 0:00:26]} 42... Nh7 {[%clk 0:00:49.1]} 43.
Kd3 {[%clk 0:00:26.2]} 43... Ng5 {[%clk 0:00:50.3]} 44. Kc3 {[%clk 0:00:26.1]}
44... Nh3 {[%clk 0:00:51.3]} 45. Rxb3 {[%clk 0:00:22.5]} 45... Rxb3+ {[%clk
0:00:51.1]} 46. Kxb3 {[%clk 0:00:24.4]} 46... Nxf2 {[%clk 0:00:52.8]} 47. Kc2
{[%clk 0:00:23.5]} 47... Kf6 {[%clk 0:00:47.2]} 48. Kd2 {[%clk 0:00:24.5]} 48...
Kf5 {[%clk 0:00:48.5]} 49. Ke2 {[%clk 0:00:24.8]} 49... Ne4 {[%clk 0:00:48.4]}
50. Bxe4+ {[%clk 0:00:06.7]} 50... Kxe4 {[%clk 0:00:50.3]} 51. Kd2 {[%clk
0:00:08.4]} 51... Kf3 {[%clk 0:00:49.8]} 52. Kd3 {[%clk 0:00:09.7]} 52... Kxg3
{[%clk 0:00:51.2]} 53. e4 {[%clk 0:00:10.8]} 53... Kf4 {[%clk 0:00:51.6]} 54. d5
{[%clk 0:00:12.7]} 54... exd5 {[%clk 0:00:53.1]} 55. exd5 {[%clk 0:00:14.6]}
55... Ke5 {[%clk 0:00:54.6]} 0-1

[Event "*** Titled Tuesday Blitz"]
[Site "Chess.com"]
[Date "2019.10.01"]
[Round "8"]
[White "VincentKeymer"]
[Black "parmupill123"]
[Result "0-1"]
[WhiteElo "2666"]
[BlackElo "2538"]
[TimeControl "180+2"]
[EndTime "14:59:12 PDT"]
[Termination "parmupill123 won by resignation"]

1. d4 {[%clk 0:03:01.9]} 1... e6 {[%clk 0:03:00.3]} 2. c4 {[%clk 0:03:02.5]}
2... b6 {[%clk 0:03:00.1]} 3. e4 {[%clk 0:02:59.7]} 3... Bb7 {[%clk 0:03:01]} 4.
Bd3 {[%clk 0:02:57.5]} 4... f5 {[%clk 0:03:01.4]} 5. exf5 {[%clk 0:02:56.9]}
5... Bxg2 {[%clk 0:03:03.3]} 6. Qh5+ {[%clk 0:02:54.5]} 6... g6 {[%clk
0:03:04.4]} 7. fxg6 {[%clk 0:02:55.8]} 7... Bg7 {[%clk 0:03:05.2]} 8. gxh7+
{[%clk 0:02:55.3]} 8... Kf8 {[%clk 0:03:06.2]} 9. Ne2 {[%clk 0:02:56.2]} 9...
Nf6 {[%clk 0:03:06.3]} 10. Qh4 {[%clk 0:02:41.1]} 10... Bxh1 {[%clk 0:03:06]}
11. Bh6 {[%clk 0:02:29.9]} 11... Qe7 {[%clk 0:02:43.1]} 12. Nf4 {[%clk
0:02:18.3]} 12... Ke8 {[%clk 0:02:39.9]} 13. Ng6 {[%clk 0:02:03.2]} 13... Qf7
{[%clk 0:02:40.1]} 14. Ne5 {[%clk 0:01:57.4]} 14... Qf8 {[%clk 0:02:29.5]} 15.
Bg6+ {[%clk 0:01:01.7]} 15... Ke7 {[%clk 0:01:58.3]} 16. Bg5 {[%clk 0:01:01.2]}
16... d6 {[%clk 0:01:51.9]} 17. Nf7 {[%clk 0:00:46.1]} 17... Nd7 {[%clk
0:01:44.9]} 18. Nc3 {[%clk 0:00:45.2]} 18... Bf3 {[%clk 0:01:01.7]} 19. Qh3
{[%clk 0:00:20]} 19... Bb7 {[%clk 0:00:27]} 20. d5 {[%clk 0:00:19.3]} 20... Nc5
{[%clk 0:00:19]} 21. O-O-O {[%clk 0:00:20.2]} 21... Qxf7 {[%clk 0:00:18.3]} 22.
Bxf7 {[%clk 0:00:20.8]} 22... Kxf7 {[%clk 0:00:20.2]} 23. Bxf6 {[%clk
0:00:20.2]} 23... Bxf6 {[%clk 0:00:20.9]} 24. Qh5+ {[%clk 0:00:21.3]} 24... Ke7
{[%clk 0:00:21.9]} 25. Nb5 {[%clk 0:00:20.8]} 25... Raf8 {[%clk 0:00:15.3]} 26.
Nxc7 {[%clk 0:00:20.7]} 26... Rf7 {[%clk 0:00:16.7]} 27. dxe6 {[%clk 0:00:20.9]}
27... Rfxh7 {[%clk 0:00:17.4]} 28. Nd5+ {[%clk 0:00:20.2]} 28... Bxd5 {[%clk
0:00:15.9]} 29. Qxd5 {[%clk 0:00:21.3]} 29... Rh5 {[%clk 0:00:15.8]} 30. Qxd6+
{[%clk 0:00:22.1]} 30... Ke8 {[%clk 0:00:15.8]} 31. Qc6+ {[%clk 0:00:22.6]}
31... Kf8 {[%clk 0:00:15.5]} 32. Qc7 {[%clk 0:00:21.1]} 32... R5h7 {[%clk
0:00:09.7]} 33. Qf4 {[%clk 0:00:14.5]} 33... Ke7 {[%clk 0:00:08.8]} 34. Qd6+
{[%clk 0:00:14.5]} 34... Ke8 {[%clk 0:00:09.5]} 35. f4 {[%clk 0:00:14.1]} 35...
Rxh2 {[%clk 0:00:05.4]} 36. Qc6+ {[%clk 0:00:12.3]} 36... Kf8 {[%clk 0:00:05.5]}
37. Qc8+ {[%clk 0:00:12.2]} 37... Kg7 {[%clk 0:00:06.3]} 38. Rg1+ {[%clk
0:00:13.4]} 38... Kh6 {[%clk 0:00:06.4]} 39. Qc7 {[%clk 0:00:14.4]} 39... Bxb2+
{[%clk 0:00:04.7]} 40. Kd1 {[%clk 0:00:15.5]} 40... Bf6 {[%clk 0:00:04]} 41. f5
{[%clk 0:00:15.8]} 41... Rd8+ {[%clk 0:00:05]} 42. Qxd8 {[%clk 0:00:13.9]} 42...
Bxd8 {[%clk 0:00:06.9]} 43. Rg8 {[%clk 0:00:14.9]} 43... Bf6 {[%clk 0:00:07.9]}
44. Rf8 {[%clk 0:00:15.7]} 44... Kg5 {[%clk 0:00:07.9]} 45. Rf7 {[%clk
0:00:14.8]} 45... Rh8 {[%clk 0:00:06.7]} 0-1

[Event "*** Titled Tuesday Blitz"]
[Site "Chess.com"]
[Date "2019.10.01"]
[Round "8"]
[White "Siemba"]
[Black "MasterKroket"]
[Result "1-0"]
[WhiteElo "2263"]
[BlackElo "2415"]
[TimeControl "180+2"]
[EndTime "14:59:22 PDT"]
[Termination "Siemba won by resignation"]

1. e4 {[%clk 0:03:01.9]} 1... c5 {[%clk 0:03:00.5]} 2. Nf3 {[%clk 0:03:02.4]}
2... e6 {[%clk 0:03:01.6]} 3. d4 {[%clk 0:03:03.6]} 3... cxd4 {[%clk 0:03:03.5]}
4. Nxd4 {[%clk 0:03:05.2]} 4... Nc6 {[%clk 0:03:05]} 5. Nc3 {[%clk 0:03:06]}
5... Qc7 {[%clk 0:03:05.8]} 6. Be3 {[%clk 0:03:07.2]} 6... a6 {[%clk 0:03:05.2]}
7. Qd2 {[%clk 0:03:08.3]} 7... Nf6 {[%clk 0:03:05.5]} 8. f4 {[%clk 0:03:09.8]}
8... Bb4 {[%clk 0:03:05.2]} 9. Bd3 {[%clk 0:03:09.2]} 9... d5 {[%clk 0:02:56.4]}
10. e5 {[%clk 0:03:05]} 10... Ng4 {[%clk 0:02:53.3]} 11. Bg1 {[%clk 0:03:01.8]}
11... b5 {[%clk 0:02:42.8]} 12. h3 {[%clk 0:02:58.6]} 12... Nh6 {[%clk
0:02:43.4]} 13. g4 {[%clk 0:02:57]} 13... f6 {[%clk 0:02:30.3]} 14. Nxc6 {[%clk
0:02:40.3]} 14... Qxc6 {[%clk 0:02:32.2]} 15. a3 {[%clk 0:02:34.7]} 15... d4
{[%clk 0:01:49.8]} 16. Be4 {[%clk 0:02:05.6]} 16... Qxe4+ {[%clk 0:01:50.5]} 17.
Nxe4 {[%clk 0:02:06.4]} 17... Bxd2+ {[%clk 0:01:52.2]} 18. Kxd2 {[%clk
0:02:06.9]} 18... fxe5 {[%clk 0:01:53.6]} 19. fxe5 {[%clk 0:02:08.2]} 19... O-O
{[%clk 0:01:53.6]} 20. Bxd4 {[%clk 0:02:07.3]} 20... Bb7 {[%clk 0:01:54.5]} 21.
Ke3 {[%clk 0:02:07.4]} 21... Nf7 {[%clk 0:01:34.8]} 22. h4 {[%clk 0:02:08.1]}
22... Nd8 {[%clk 0:01:32.3]} 23. Rhf1 {[%clk 0:02:05.2]} 23... Nc6 {[%clk
0:01:31.1]} 24. Nd6 {[%clk 0:02:05.9]} 24... Nxd4 {[%clk 0:01:30.6]} 25. Kxd4
{[%clk 0:02:06.4]} 25... Bf3 {[%clk 0:01:27.7]} 26. g5 {[%clk 0:01:57.1]} 26...
Rf4+ {[%clk 0:01:26.7]} 27. Ke3 {[%clk 0:01:58]} 27... Raf8 {[%clk 0:01:26.5]}
28. Rf2 {[%clk 0:01:57.3]} 28... b4 {[%clk 0:00:56.3]} 29. Raf1 {[%clk
0:01:40.7]} 29... bxa3 {[%clk 0:00:56.3]} 30. bxa3 {[%clk 0:01:42.3]} 30... Rxh4
{[%clk 0:00:48]} 31. Rxf3 {[%clk 0:01:43.3]} 31... Rb8 {[%clk 0:00:43.3]} 32.
Rf7 {[%clk 0:01:36.3]} 32... Rg4 {[%clk 0:00:41.2]} 33. Ne4 {[%clk 0:01:18.7]}
33... h5 {[%clk 0:00:37.8]} 34. gxh6 {[%clk 0:01:17.3]} 34... Rb5 {[%clk
0:00:37.1]} 35. Rxg7+ {[%clk 0:00:44.7]} 35... Rxg7 {[%clk 0:00:38.1]} 36. Nf6+
{[%clk 0:00:43.9]} 36... Kh8 {[%clk 0:00:39.8]} 37. hxg7+ {[%clk 0:00:44.5]}
37... Kxg7 {[%clk 0:00:41.7]} 38. Ke4 {[%clk 0:00:42.6]} 38... Rc5 {[%clk
0:00:43.2]} 39. Ne8+ {[%clk 0:00:38.3]} 39... Kg8 {[%clk 0:00:43]} 40. Rf2
{[%clk 0:00:37.5]} 40... Rc3 {[%clk 0:00:42.7]} 41. Rf6 {[%clk 0:00:20.5]} 41...
Rxc2 {[%clk 0:00:42.7]} 42. Rxe6 {[%clk 0:00:21.4]} 42... Kf7 {[%clk 0:00:31.8]}
43. Rxa6 {[%clk 0:00:11.6]} 43... Kxe8 {[%clk 0:00:31.8]} 44. Kd5 {[%clk
0:00:13.1]} 44... Ke7 {[%clk 0:00:20.4]} 45. Ra7+ {[%clk 0:00:13.8]} 45... Ke8
{[%clk 0:00:21]} 46. Kd6 {[%clk 0:00:13.6]} 46... Rb2 {[%clk 0:00:17.6]} 47.
Ra8+ {[%clk 0:00:13.2]} 47... Kf7 {[%clk 0:00:18.2]} 48. e6+ {[%clk 0:00:14.6]}
48... Kf6 {[%clk 0:00:19.3]} 49. Rf8+ {[%clk 0:00:16.1]} 49... Kg7 {[%clk
0:00:20.7]} 50. e7 {[%clk 0:00:16.4]} 50... Rd2+ {[%clk 0:00:22.1]} 51. Kc7
{[%clk 0:00:16.9]} 51... Rc2+ {[%clk 0:00:23.3]} 52. Kb7 {[%clk 0:00:17.5]}
52... Rb2+ {[%clk 0:00:24.5]} 53. Ka7 {[%clk 0:00:18.5]} 53... Re2 {[%clk
0:00:24.8]} 54. e8=Q {[%clk 0:00:19.7]} 1-0

[Event "*** Titled Tuesday Blitz"]
[Site "Chess.com"]
[Date "2019.10.01"]
[Round "8"]
[White "Taron_Shagbazyan"]
[Black "albi1999"]
[Result "1/2-1/2"]
[WhiteElo "2734"]
[BlackElo "2540"]
[TimeControl "180+2"]
[EndTime "14:59:23 PDT"]
[Termination "Game drawn - insufficient material"]

1. d4 {[%clk 0:03:01.9]} 1... Nf6 {[%clk 0:01:57.1]} 2. c4 {[%clk 0:03:00.2]}
2... e6 {[%clk 0:01:58.4]} 3. Nc3 {[%clk 0:03:01.3]} 3... Bb4 {[%clk 0:01:57.4]}
4. e3 {[%clk 0:03:02.8]} 4... O-O {[%clk 0:01:57.5]} 5. Bd3 {[%clk 0:03:04.3]}
5... d5 {[%clk 0:01:58.2]} 6. Nf3 {[%clk 0:03:05.3]} 6... b6 {[%clk 0:01:57.5]}
7. O-O {[%clk 0:03:04.3]} 7... Ba6 {[%clk 0:01:58.1]} 8. Qe2 {[%clk 0:03:05.2]}
8... c5 {[%clk 0:01:55.7]} 9. dxc5 {[%clk 0:02:58.8]} 9... Bxc5 {[%clk
0:01:47.1]} 10. Rd1 {[%clk 0:02:58.5]} 10... Qc8 {[%clk 0:01:11.3]} 11. cxd5
{[%clk 0:02:58.9]} 11... exd5 {[%clk 0:01:12.1]} 12. Bxa6 {[%clk 0:02:48.9]}
12... Qxa6 {[%clk 0:01:11]} 13. Qxa6 {[%clk 0:02:48]} 13... Nxa6 {[%clk
0:01:12.9]} 14. Nxd5 {[%clk 0:02:49.5]} 14... Nxd5 {[%clk 0:01:14.8]} 15. Rxd5
{[%clk 0:02:50.9]} 15... Nb4 {[%clk 0:01:13.4]} 16. Rd1 {[%clk 0:02:49.1]} 16...
Rfd8 {[%clk 0:01:13.8]} 17. Bd2 {[%clk 0:02:50.5]} 17... Nd3 {[%clk 0:01:14.8]}
18. Bc3 {[%clk 0:02:51.6]} 18... Rd7 {[%clk 0:01:14]} 19. Kf1 {[%clk 0:02:52.1]}
19... Rad8 {[%clk 0:01:14.9]} 20. Ke2 {[%clk 0:02:52.5]} 20... f6 {[%clk
0:01:12.4]} 21. Rd2 {[%clk 0:02:47.9]} 21... Nb4 {[%clk 0:01:11.3]} 22. a3
{[%clk 0:02:39.6]} 22... Nd5 {[%clk 0:01:11.5]} 23. Bd4 {[%clk 0:02:38.2]} 23...
Bf8 {[%clk 0:01:12.9]} 24. Rad1 {[%clk 0:02:38.4]} 24... Kf7 {[%clk 0:01:12.2]}
25. g3 {[%clk 0:02:39.6]} 25... Ke6 {[%clk 0:01:09.1]} 26. e4 {[%clk 0:02:31.9]}
26... Ne7 {[%clk 0:01:08.7]} 27. Bc3 {[%clk 0:02:32.8]} 27... Nc6 {[%clk
0:01:07.8]} 28. Rxd7 {[%clk 0:02:33.2]} 28... Rxd7 {[%clk 0:01:09.7]} 29. Rxd7
{[%clk 0:02:34.3]} 29... Kxd7 {[%clk 0:01:11.6]} 30. Nd2 {[%clk 0:02:33.4]}
30... b5 {[%clk 0:01:10.8]} 31. f4 {[%clk 0:02:33.1]} 31... a5 {[%clk
0:01:11.5]} 32. Nb3 {[%clk 0:02:33.8]} 32... a4 {[%clk 0:01:07.2]} 33. Nd4
{[%clk 0:02:34.6]} 33... Nxd4+ {[%clk 0:01:05.3]} 34. Bxd4 {[%clk 0:02:36.5]}
34... b4 {[%clk 0:01:07.2]} 35. axb4 {[%clk 0:02:37.1]} 35... Bxb4 {[%clk
0:01:09.1]} 36. h3 {[%clk 0:02:38.5]} 36... a3 {[%clk 0:01:10.1]} 37. bxa3
{[%clk 0:02:39.4]} 37... Bxa3 {[%clk 0:01:12]} 38. Kd3 {[%clk 0:02:37.7]} 38...
Ke6 {[%clk 0:01:13.1]} 39. Kc4 {[%clk 0:02:28.5]} 39... h5 {[%clk 0:01:13.6]}
40. Bc5 {[%clk 0:02:28.6]} 40... Bc1 {[%clk 0:01:09.6]} 41. Kd3 {[%clk
0:02:23.5]} 41... g6 {[%clk 0:00:58.6]} 42. Bf2 {[%clk 0:02:11.8]} 42... h4
{[%clk 0:00:54.5]} 43. Kc2 {[%clk 0:02:09.7]} 43... hxg3 {[%clk 0:00:55.5]} 44.
Bxg3 {[%clk 0:02:11.6]} 44... Ba3 {[%clk 0:00:55.7]} 45. Kd3 {[%clk 0:02:13]}
45... Bc5 {[%clk 0:00:56.5]} 46. Ke2 {[%clk 0:02:10.6]} 46... Bd6 {[%clk
0:00:57.7]} 47. Kf3 {[%clk 0:02:12.1]} 47... Be7 {[%clk 0:00:57.5]} 48. Kg4
{[%clk 0:02:10.6]} 48... f5+ {[%clk 0:00:58.1]} 49. exf5+ {[%clk 0:02:11.4]}
49... gxf5+ {[%clk 0:01:00]} 50. Kh5 {[%clk 0:02:13.3]} 50... Kf7 {[%clk
0:01:00.6]} 51. Bh4 {[%clk 0:02:14.2]} 51... Bd6 {[%clk 0:00:57.9]} 52. Bg5
{[%clk 0:02:14.8]} 52... Kg7 {[%clk 0:00:58.7]} 53. Kh4 {[%clk 0:02:03.9]} 53...
Kg6 {[%clk 0:00:59.5]} 54. Kg3 {[%clk 0:02:05.4]} 54... Kh5 {[%clk 0:00:59.6]}
55. Kf3 {[%clk 0:02:06.6]} 55... Bc5 {[%clk 0:01:00.8]} 56. Ke2 {[%clk
0:02:04.8]} 56... Kg6 {[%clk 0:01:02]} 57. Kd3 {[%clk 0:02:05.5]} 57... Bf2
{[%clk 0:01:02.6]} 58. Kc4 {[%clk 0:02:06.2]} 58... Be3 {[%clk 0:01:03.7]} 59.
Kd5 {[%clk 0:02:06.8]} 59... Bc1 {[%clk 0:01:04.5]} 60. Ke6 {[%clk 0:02:05.6]}
60... Bd2 {[%clk 0:01:05.5]} 61. Ke5 {[%clk 0:02:06.7]} 61... Bc3+ {[%clk
0:01:04]} 62. Kd5 {[%clk 0:02:06.2]} 62... Kh5 {[%clk 0:01:04.1]} 63. Ke6 {[%clk
0:02:03.6]} 63... Kg6 {[%clk 0:01:05]} 64. Bh4 {[%clk 0:02:04.9]} 64... Bd2
{[%clk 0:01:05.6]} 65. Bg3 {[%clk 0:02:06.5]} 65... Be3 {[%clk 0:01:06.2]} 66.
Kd5 {[%clk 0:02:04.7]} 66... Kh5 {[%clk 0:00:11]} 67. Ke5 {[%clk 0:02:03.6]}
67... Kg6 {[%clk 0:00:11.4]} 68. Bh4 {[%clk 0:02:00.5]} 68... Bc1 {[%clk
0:00:11.9]} 69. Bg5 {[%clk 0:02:01.9]} 69... Bd2 {[%clk 0:00:13]} 70. Kd4 {[%clk
0:02:02.7]} 70... Kh5 {[%clk 0:00:13.4]} 71. Ke5 {[%clk 0:02:00.6]} 71... Kg6
{[%clk 0:00:14]} 72. Ke6 {[%clk 0:02:00.9]} 72... Bc1 {[%clk 0:00:14.9]} 73. Ke7
{[%clk 0:02:02]} 73... Kh5 {[%clk 0:00:15.2]} 74. Kf6 {[%clk 0:02:03]} 74...
Bxf4 {[%clk 0:00:14.5]} 75. h4 {[%clk 0:02:04.1]} 75... Bg3 {[%clk 0:00:14]} 76.
Kxf5 {[%clk 0:02:04.5]} 76... Bxh4 {[%clk 0:00:15.9]} 1/2-1/2